bitfinex/quotes_ETHUSD_20260129
["timestamp","ask_amount","ask_price","bid_price","bid_amount"]
[1769657501089,14.70145537,2952.7,2951.4,0.84705563]
[1769657501290,13.85477268,2952.5,2951.4,0.84705563]
[1769657503716,1.8089104,2952.6,2951.2,13.07377381]
[1769657504023,0.84673097,2952.6,2951.2,13.07377381]
[1769657505318,0.84671128,2952.7,2951.2,13.07377381]
[1769657505514,0.84671128,2952.7,2947.6,0.339]
[1769657505515,13.85477268,2950.8,2947.6,0.339]
[1769657505714,10.47391589,2951.3,2948.5,0.01405729]
[1769657505715,13.85477268,2949.5,2948.5,0.01405729]
[1769657505920,1.05455896,2949.4,2947.5,13.60582434]
[1769657506130,13.85477268,2949.4,2947.5,13.60582434]
[1769657506318,15.24024995,2949.3,2947.6,1.36058243]
[1769657506508,13.85477268,2949.3,2947.6,0.84814551]
[1769657506826,13.85477268,2949.3,2947.7,0.84811682]
[1769657507130,13.85477268,2949.3,2947.7,0.84809917]
[1769657507325,15.24024995,2949.2,2947.7,1.32558218]
[1769657507531,1.38547727,2949.2,2947.7,13.54925682]
[1769657507840,3.56686574,2949.8,2948.2,13.91974884]
[1769657507841,1.02409598,2949.8,2948.2,13.91974884]
[1769657507999,0.17657554,2949.8,2948.2,14.62874884]
[1769657508952,0.17657554,2949.8,2948.6,13.07177381]
[1769657509260,0.17657554,2949.8,2948.2,0.84797503]
[1769657509406,0.17657554,2949.8,2948.3,2.3565599]
[1769657509600,0.17657554,2949.8,2948.3,15.42833371]
[1769657509810,0.17657554,2949.8,2948.4,0.84791751]
[1769657510103,0.17657554,2949.8,2948.4,13.91969132]
[1769657511018,0.17657554,2949.8,2948.5,0.709]
[1769657511258,0.17657554,2949.8,2948.6,0.47748301]
[1769657511720,3.38971885,2950.1,2948.7,0.84783124]
[1769657512520,0.8474289,2950.1,2948.7,0.84783124]
[1769657512720,14.70219262,2950.2,2948.7,0.84783124]
[1769657513321,14.70219262,2950.2,2948.8,0.71]
[1769657513555,1.80917933,2950.1,2948.8,0.71]
[1769657514054,1.80917933,2950.1,2948.9,0.84777374]
[1769657514243,2.65662172,2950.1,2948.9,0.84777374]
[1769657514439,1.80917933,2950.1,2948.9,0.84777374]
[1769657515059,3.38928806,2950.5,2948.9,14.30719148]
[1769657515239,0.84734273,2950.4,2948.9,14.30719148]
[1769657515435,13.98208233,2950.4,2949.0,0.71]
[1769657515659,1.73713704,2950.3,2949.0,0.71]
[1769657515866,0.84734273,2950.4,2949.1,0.84771625]
[1769657516060,13.1347396,2950.3,2949.1,0.84771625]
[1769657516439,13.1347396,2950.3,2949.0,4.100865]
[1769657516440,13.1347396,2950.3,2949.0,1.55773019]
[1769657517077,13.1347396,2950.3,2949.0,0.84773019]
[1769657518169,13.98213977,2950.2,2948.7,1.55783124]
[1769657518469,15.84642754,2950.1,2948.8,0.54266777]
[1769657519068,2.71168794,2950.1,2948.8,0.54266777]
[1769657519264,13.9821325,2950.3,2948.8,0.54266777]
[1769657519970,13.9821325,2950.3,2948.7,1.55783124]
[1769657520268,13.9821325,2950.3,2948.7,0.84783124]
[1769657520668,13.1347396,2949.8,2948.7,0.84782759]
[1769657520901,13.1347396,2950.2,2948.7,0.84782759]
[1769657521181,1.39821325,2950.1,2948.9,13.45941774]
[1769657521361,13.9821325,2950.3,2948.9,0.71]
[1769657521878,13.9821325,2950.3,2948.8,0.42391526]
[1769657521879,13.9821325,2950.3,2948.8,1.13391526]
[1769657522250,13.9821325,2950.3,2948.9,0.84777374]
[1769657523076,13.9821325,2950.3,2948.8,1.27170224]
[1769657523282,13.1347396,2950.1,2948.7,0.84780993]
[1769657523481,13.1347396,2950.1,2948.5,0.84986262]
[1769657523778,13.1347396,2950.1,2948.7,0.84781272]
[1769657523981,13.1347396,2950.1,2948.6,0.84784804]
[1769657524351,13.1347396,2949.9,2948.5,3.39353024]
[1769657524669,13.1347396,2949.9,2948.5,4.15704748]
[1769657525377,13.1347396,2949.9,2948.5,0.84988875]
[1769657525955,13.1347396,2949.7,2948.5,0.84988875]
[1769657526683,13.98231215,2949.6,2948.5,0.002]
[1769657527256,3.3902902,2949.7,2948.5,0.002]
[1769657527257,0.8475637,2949.7,2948.5,0.002]
[1769657527879,0.84752815,2949.8,2948.5,0.002]
[1769657528084,0.42375105,2949.7,2948.5,0.002]
[1769657528983,1.27130328,2949.7,2948.5,0.002]
[1769657529179,0.42375105,2949.7,2948.5,0.002]
[1769657529489,1.49363169,2950.0,2948.5,13.46141774]
[1769657529788,13.1347396,2950.4,2948.5,13.46141774]
[1769657529987,0.84730596,2950.6,2948.7,13.45941774]
[1769657531089,3.38905686,2950.7,2948.9,13.45941774]
[1769657531389,0.84725658,2950.7,2948.9,13.45941774]
[1769657531593,1.73709881,2950.6,2949.0,1.43072202]
[1769657531796,1.73709881,2950.6,2949.1,0.71]
[1769657532758,14.87183841,2950.6,2949.2,0.71]
[1769657533288,15.71913498,2950.6,2949.3,0.84765876]
[1769657534284,1.73709881,2950.6,2949.3,14.3070765]
[1769657534585,20.31191229,2951.0,2949.3,14.3070765]
[1769657534791,13.1347396,2950.9,2949.4,0.71]
[1769657534978,2.03119123,2950.8,2949.5,1.50170765]
[1769657535372,13.98199618,2950.7,2949.5,0.71]
[1769657535758,0.84725658,2950.7,2949.5,0.71]
[1769657535970,13.1347396,2951.6,2949.7,13.45941774]
[1769657536388,0.001,2950.4,2949.7,13.45941774]
[1769657537597,0.001,2950.4,2949.8,0.84751508]
[1769657537900,0.001,2950.4,2949.9,1.76969932]
[1769657538201,0.001,2950.4,2949.8,1.55751508]
[1769657538495,0.001,2950.4,2949.7,0.84753425]
[1769657539703,0.001,2950.4,2949.5,0.84760128]
[1769657539867,0.001,2950.4,2949.6,0.71]
[1769657541702,0.001,2950.4,2949.7,0.84754381]
[1769657542005,0.001,2950.4,2949.8,0.49477191]
[1769657542610,13.1347396,2950.2,2948.6,0.84784149]
[1769657542789,13.1347396,2950.2,2948.5,0.84986909]
[1769657543506,13.1347396,2950.1,2948.5,0.002]
[1769657543671,13.1347396,2949.9,2948.5,0.002]
[1769657545779,0.84751508,2949.8,2948.5,0.002]
[1769657545983,1.39822547,2949.8,2948.5,0.002]
[1769657548006,2.24576177,2949.8,2948.5,0.002]
[1769657548177,1.39822547,2949.8,2948.9,0.002]
[1769657548381,0.84745819,2950.0,2948.9,0.002]
[1769657548703,14.04858186,2950.0,2948.9,0.002]
[1769657550412,0.84745819,2950.0,2948.9,0.002]
[1769657552323,3.38971923,2950.1,2948.9,0.002]
[1769657552617,16.81917773,2950.1,2948.9,0.002]
[1769657552791,1.76676066,2950.0,2948.9,0.002]
[1769657553805,0.001,2950.2,2948.9,13.56780557]
[1769657554622,0.001,2950.2,2949.0,0.84774499]
[1769657555709,13.4304585,2950.2,2949.0,0.84774499]
[1769657555892,13.4304585,2950.2,2948.9,0.002]
[1769657555893,13.4294585,2950.0,2948.9,0.84974611]
[1769657556086,13.4294585,2950.0,2948.9,0.002]
[1769657556292,13.4294585,2950.0,2948.7,0.002]
[1769657556790,13.4294585,2949.8,2948.7,0.002]
[1769657559111,14.27700231,2949.7,2948.7,0.002]
[1769657559294,13.4294585,2949.5,2948.7,0.002]
[1769657560517,13.4294585,2949.5,2948.3,0.002]
[1769657560721,13.4294585,2949.5,2948.9,0.002]
[1769657561023,13.4294585,2949.5,2948.3,0.002]
[1769657561024,13.4294585,2949.3,2948.3,0.002]
[1769657561195,0.84763002,2949.4,2948.3,0.002]
[1769657561196,13.4294585,2949.1,2948.3,0.002]
[1769657561391,13.4294585,2949.1,2948.6,0.002]
[1769657563323,0.84774499,2949.0,2948.6,0.002]
[1769657563691,14.27720349,2949.0,2948.3,0.002]
[1769657566322,14.27720349,2949.0,2947.6,0.84814764]
[1769657566527,13.4294585,2948.8,2947.6,0.84814764]
[1769657567235,13.4294585,2948.8,2947.5,1.38421287]
[1769657567419,13.4294585,2948.6,2947.5,1.38421287]
[1769657568053,0.84783124,2948.7,2947.5,14.95001844]
[1769657568345,0.84782267,2948.8,2947.5,14.95001844]
[1769657568756,14.27728117,2948.8,2947.5,14.95001844]
[1769657569156,0.84779529,2948.9,2947.5,14.95001844]
[1769657569353,14.27717475,2949.1,2947.5,14.95001844]
[1769657569535,14.27717475,2949.1,2947.5,1.38421287]
[1769657570130,14.27717475,2949.1,2947.5,14.95001844]
[1769657570335,1.76680397,2949.0,2947.7,13.56580557]
[1769657570754,0.84769975,2949.2,2947.7,13.56580557]
[1769657570928,0.84767912,2949.3,2947.7,13.56580557]
[1769657571324,14.27713762,2949.3,2947.7,13.56580557]
[1769657571547,0.84760128,2949.5,2947.8,14.41389567]
[1769657573559,3.39030373,2949.6,2947.8,14.41389567]
[1769657573936,13.4294585,2949.5,2947.9,14.27580557]
[1769657575548,12.96084856,2949.9,2948.1,13.80002241]
[1769657575754,12.96084856,2949.7,2948.2,15.26482791]
[1769657577686,15.18929911,2949.8,2948.4,13.80002241]
[1769657577832,13.80837387,2949.8,2948.4,13.80002241]
[1769657578499,0.84750573,2949.9,2948.4,13.80002241]
[1769657579684,0.84845762,2950.0,2948.5,0.84788875]
[1769657579869,2.56846229,2950.0,2948.6,14.46025982]
[1769657580068,2.56846229,2950.0,2948.8,13.80002241]
[1769657580391,1.72100467,2950.0,2948.8,13.80002241]
[1769657581487,12.96084856,2949.9,2948.5,0.84788875]
[1769657581700,13.80842111,2949.6,2948.1,17.19199836]
[1769657581901,0.84755693,2949.7,2948.3,13.80002241]
[1769657582408,1.46818532,2949.8,2948.3,13.80002241]
[1769657582612,0.001,2950.0,2948.4,8.25121]
[1769657582780,0.001,2950.0,2948.5,13.80002241]
[1769657582970,1.2723678,2950.0,2948.7,13.80002241]
[1769657583168,14.23321636,2950.0,2948.8,0.71]
[1769657583581,14.23321636,2950.0,2948.8,14.51002241]
[1769657583782,14.23321636,2950.0,2948.9,0.84777374]
[1769657583982,1.76229364,2949.9,2948.9,0.84777374]
[1769657585280,0.001,2949.8,2948.9,0.84777374]
[1769657585702,0.001,2949.8,2948.9,1.55777374]
[1769657588112,0.001,2949.8,2948.7,0.84783124]
[1769657588910,0.001,2949.8,2948.7,14.64785365]
[1769657589090,0.001,2949.8,2948.8,0.74504067]
[1769657589996,0.001,2949.8,2948.8,14.54506308]
[1769657590187,0.001,2949.8,2948.9,0.84777374]
[1769657590387,0.001,2949.8,2948.9,14.64779615]
[1769657590593,0.001,2949.8,2948.9,15.35779615]
[1769657590889,0.001,2949.8,2949.0,15.18002465]
[1769657591284,0.001,2949.8,2949.0,1.38000224]
[1769657591491,0.001,2949.8,2948.9,1.55777374]
[1769657594581,0.001,2949.8,2949.0,13.80002241]
[1769657595177,0.001,2949.8,2948.9,0.84777374]
[1769657595409,0.001,2949.8,2949.0,0.71]
[1769657595709,0.001,2949.8,2949.0,1.20488687]
[1769657596120,0.001,2949.8,2949.0,15.00490928]
[1769657596710,0.001,2949.7,2949.1,0.84771625]
[1769657597021,0.001,2949.7,2949.1,14.64773866]
[1769657599119,0.001,2949.8,2949.1,14.64773866]
[1769657599310,0.001,2949.8,2949.2,15.43017845]
[1769657600292,0.001,2950.4,2949.2,15.43017845]
[1769657600824,0.001,2950.4,2949.4,13.80002241]
[1769657601617,12.96184856,2950.4,2949.2,2.47783282]
[1769657601924,12.96184856,2950.4,2948.8,0.84779484]
[1769657602110,12.96084856,2950.2,2948.3,3.39170014]
[1769657602311,1.36060037,2950.3,2948.5,0.84787361]
[1769657602312,12.96084856,2950.0,2948.5,0.84787361]
[1769657602703,12.96084856,2950.0,2948.4,4.10166278]
[1769657602905,12.96084856,2950.0,2948.5,0.84788875]
[1769657602906,12.96084856,2949.8,2948.5,0.84788875]
[1769657603106,12.96084856,2949.6,2948.5,0.84788875]
[1769657605020,13.80842588,2949.6,2948.5,0.84788875]
[1769657605190,13.80842588,2949.6,2948.6,0.71]
[1769657606618,3.39042063,2950.4,2948.6,14.14453234]
[1769657606619,0.84740017,2950.2,2948.6,14.14453234]
[1769657606830,0.84738519,2950.3,2948.6,14.14453234]
[1769657606993,13.7682938,2950.3,2948.7,0.84783124]
[1769657607311,13.7682938,2950.3,2948.8,0.71]
[1769657607519,12.92090861,2950.1,2948.8,0.71]
[1769657608230,12.92090861,2950.1,2949.0,0.002]
[1769657608429,12.92090861,2950.1,2949.0,0.712]
[1769657608637,12.92190861,2950.1,2949.0,0.712]
[1769657609119,0.84745762,2950.0,2949.1,0.84771625]
[1769657609331,2.73494855,2950.0,2949.1,0.84771625]
[1769657610329,14.7695648,2950.0,2949.1,0.84771625]
[1769657611203,14.7695648,2950.0,2949.0,0.002]
[1769657611708,1.88749093,2950.0,2949.0,0.002]
[1769657611908,0.84843213,2950.1,2949.0,0.002]
[1769657613730,0.001,2950.1,2949.0,0.002]
[1769657614748,0.001,2950.1,2949.0,13.24408118]
[1769657615627,0.001,2950.1,2949.0,0.002]
[1769657616014,12.88307387,2950.1,2949.0,0.002]
[1769657616744,14.17138126,2950.1,2949.0,0.002]
[1769657616950,14.17138126,2950.1,2949.1,0.71]
[1769657618832,0.84745762,2950.0,2949.1,0.71]
[1769657619833,14.17138126,2950.1,2949.1,0.71]
[1769657620150,0.001,2950.1,2949.1,0.71]
[1769657620847,0.001,2950.1,2949.2,0.8496875]
[1769657621423,0.001,2950.4,2949.3,13.24208118]
[1769657622123,0.001,2950.4,2949.4,0.71]
[1769657622320,0.001,2950.4,2949.4,13.95208118]
[1769657622526,0.001,2950.4,2949.6,13.24208118]
[1769657623337,0.001,2950.4,2949.7,0.84754381]
[1769657623735,0.001,2950.4,2949.7,14.08962499]
[1769657624453,12.88207387,2950.3,2949.2,0.002]
[1769657624751,12.88207387,2949.9,2948.3,0.84792445]
[1769657624928,12.88207387,2949.9,2948.3,0.84792548]
[1769657625127,12.88207387,2949.9,2948.4,0.84791009]
[1769657625328,12.88207387,2949.7,2948.3,3.39178126]
[1769657626750,0.8474289,2950.1,2948.4,13.24208118]
[1769657627061,13.72950277,2950.1,2948.4,13.73705393]
[1769657627437,13.72950277,2950.1,2948.5,0.84788875]
[1769657628437,13.72950277,2950.1,2948.5,14.08996993]
[1769657630256,13.72950277,2950.1,2948.5,0.84788875]
[1769657630477,12.88207387,2949.9,2948.6,0.47344165]
[1769657631835,0.84751508,2949.8,2948.7,0.84783124]
[1769657632264,13.72958895,2949.8,2948.8,0.71]
[1769657633962,13.72958895,2949.8,2948.8,1.55779871]
[1769657634468,13.72958895,2949.8,2948.7,1.55981705]
[1769657634776,12.88207387,2949.6,2948.8,0.84779613]
[1769657635870,0.84760128,2949.5,2948.7,0.84983124]
[1769657636261,13.7296678,2949.6,2948.7,0.84983124]
[1769657638869,13.7296678,2949.6,2948.7,0.002]
[1769657639049,13.51438275,2949.4,2948.7,0.002]
[1769657640774,0.84765876,2949.3,2948.7,0.002]
[1769657646490,0.84763808,2949.4,2948.7,0.002]
[1769657646704,2.73080066,2949.5,2948.7,0.002]
[1769657647085,16.24518341,2949.5,2948.7,0.002]
[1769657647294,1.96354846,2949.4,2948.7,0.002]
[1769657648383,15.47793121,2949.4,2948.7,0.002]
[1769657648897,1.96354846,2949.4,2948.7,0.002]
[1769657649105,0.84760128,2949.5,2948.7,0.002]
[1769657651403,16.90467553,2949.6,2948.7,0.002]
[1769657653880,13.51438275,2949.5,2948.7,0.002]
[1769657655208,13.51438275,2949.8,2948.7,0.002]
[1769657656110,13.51438275,2949.6,2948.7,0.002]
[1769657656318,13.51438275,2949.4,2948.7,0.002]
[1769657656884,13.51538275,2949.4,2948.7,0.002]
[1769657658415,14.36301492,2949.4,2948.7,0.002]
[1769657660012,0.001,2949.4,2948.7,0.002]
[1769657660596,13.51538275,2949.4,2948.7,0.002]
[1769657660792,14.24401181,2949.4,2948.7,0.002]
[1769657662913,14.36204151,2949.3,2948.7,0.002]
[1769657664717,13.51438275,2949.3,2948.7,0.002]
[1769657665391,14.36204467,2949.3,2948.7,0.002]
[1769657667899,1.57727933,2949.4,2948.7,0.002]
[1769657668308,1.56733371,2949.3,2948.7,0.002]
[1769657668742,0.001,2949.2,2948.7,0.002]
[1769657671730,0.001,2949.2,2948.7,12.60776447]
[1769657671935,0.001,2949.2,2948.5,1.55988875]
[1769657672226,12.85919893,2949.2,2948.5,1.55988875]
[1769657672422,12.85919893,2949.2,2948.5,2.39419962]
[1769657672616,0.001,2949.2,2948.5,2.39419962]
[1769657672800,0.001,2949.2,2948.5,15.05061344]
[1769657673324,0.001,2949.2,2948.5,2.39419962]
[1769657675826,0.001,2949.2,2948.5,15.05061344]
[1769657676012,0.001,2949.2,2948.6,1.29073204]
[1769657677802,0.001,2949.2,2948.7,0.71]
[1769657678003,12.85819893,2949.1,2947.8,0.002]
[1769657678303,12.85819893,2949.1,2947.5,0.53605053]
[1769657678304,12.85819893,2948.5,2947.5,0.53605053]
[1769657679437,12.85819893,2948.5,2947.5,1.38422424]
[1769657679636,12.85819893,2948.5,2947.5,1.38420849]
[1769657679841,13.70611425,2948.5,2947.6,0.85014764]
[1769657680307,13.70611425,2948.5,2947.8,0.002]
[1769657681035,3.39136174,2948.7,2947.8,0.002]
[1769657681036,0.84784962,2948.7,2947.8,0.002]
[1769657681239,14.56792675,2948.6,2947.8,0.002]
[1769657681646,0.84782176,2948.8,2947.8,0.002]
[1769657682353,12.85819893,2948.7,2947.8,0.002]
[1769657684034,12.85819893,2948.5,2947.8,0.002]
[1769657685513,12.85819893,2948.5,2947.6,0.85014764]
[1769657685514,12.85819893,2948.5,2947.6,0.002]
[1769657685713,12.85819893,2948.3,2947.6,0.002]
[1769657686467,13.70616709,2948.3,2947.6,0.002]
[1769657686754,12.85819893,2948.3,2947.6,0.002]
[1769657687124,13.70614632,2948.3,2947.6,0.002]
[1769657688757,13.70614632,2948.3,2947.5,0.53605053]
[1769657688948,12.85819893,2948.1,2947.5,0.53605053]
[1769657689526,12.85819893,2948.1,2947.1,0.002]
[1769657689862,12.85819893,2948.0,2947.1,0.002]
[1769657690456,12.85819893,2948.0,2947.1,0.85027347]
[1769657690663,0.84806133,2947.9,2947.1,0.002]
[1769657690827,14.56804862,2947.8,2947.1,0.002]
[1769657692561,14.56804862,2947.8,2947.3,0.002]
[1769657692738,15.41616501,2947.8,2947.3,0.002]
[1769657695363,1.70984969,2947.8,2947.3,0.002]
[1769657695548,0.84809838,2947.8,2947.3,0.002]
[1769657697063,14.68033597,2947.9,2947.3,0.002]
[1769657698065,3.39206787,2948.1,2947.3,0.002]
[1769657698265,0.84794627,2948.3,2947.3,13.75100764]
[1769657698563,5.47228953,2948.4,2947.4,1.37510076]
[1769657698564,2.21853386,2948.4,2947.4,1.37510076]
[1769657698763,1.37060589,2948.4,2947.4,15.1241084]
[1769657698966,14.68016467,2948.5,2947.4,15.1241084]
[1769657698967,14.68003159,2948.9,2947.5,14.59718406]
[1769657699167,15.39003159,2948.9,2947.5,14.59718406]
[1769657700170,15.39003159,2948.9,2947.5,0.84817642]
[1769657700359,13.83225785,2948.7,2947.5,0.84817642]
[1769657701145,0.84786,2948.6,2947.5,14.59718406]
[1769657701857,14.68011075,2948.7,2947.5,14.59718406]
[1769657703353,0.8478529,2948.7,2947.5,14.59718406]
[1769657703562,0.8478529,2948.7,2947.7,13.74900764]
[1769657703760,3.55012096,2948.8,2947.7,13.74900764]
[1769657704276,0.001,2949.0,2948.1,13.74900764]
[1769657704479,0.001,2949.0,2948.2,14.45900764]
[1769657705148,0.001,2949.2,2948.4,0.84791751]
[1769657705347,13.83325785,2949.2,2948.1,0.84798578]
[1769657705552,13.83325785,2949.2,2948.0,1.55801218]
[1769657705750,13.83225785,2949.0,2948.1,0.84799959]
[1769657705952,13.83225785,2949.0,2948.0,0.84803195]
[1769657706149,13.83225785,2949.0,2948.0,0.84802472]
[1769657706669,13.83225785,2949.0,2947.9,14.45900764]
[1769657706858,13.83225785,2949.0,2948.2,0.84797257]
[1769657707173,1.52155836,2948.9,2948.1,0.84798122]
[1769657707938,14.68006034,2948.8,2947.9,3.39224241]
[1769657708356,14.68006034,2948.8,2947.9,0.84806133]
[1769657710079,13.83225785,2948.8,2947.9,0.84806133]
[1769657710274,0.001,2949.2,2948.1,13.74900764]
[1769657710792,14.68095129,2949.2,2948.1,13.74900764]
[1769657710960,14.68094676,2949.2,2948.1,13.74900764]
[1769657711146,0.001,2949.2,2948.1,13.74900764]
[1769657711961,0.001,2949.2,2948.2,14.59698267]
[1769657712183,0.001,2949.2,2948.3,14.62907001]
[1769657712397,0.001,2949.2,2948.4,13.74900764]
[1769657712586,13.83225785,2950.1,2948.7,13.74900764]
[1769657712783,0.84745799,2950.0,2948.9,21.98987259]
[1769657713164,0.84745778,2950.0,2949.0,13.74900764]
[1769657713563,0.001,2950.4,2949.0,13.74900764]
[1769657713774,0.84834381,2950.4,2948.9,13.74900764]
[1769657713953,0.001,2950.4,2948.9,13.74900764]
[1769657714270,0.001,2950.4,2949.1,13.74900764]
[1769657714452,0.001,2950.4,2949.3,13.74900764]
[1769657714853,14.67935958,2951.3,2949.5,13.74900764]
[1769657715086,14.67935958,2951.3,2949.7,13.74900764]
[1769657716088,14.67935958,2951.3,2949.8,0.84751508]
[1769657716492,14.67935958,2951.3,2949.8,14.59652272]
[1769657717320,1.80675849,2951.2,2949.8,14.59652272]
[1769657717529,15.63901634,2951.2,2949.8,14.59652272]
[1769657717822,15.63901634,2951.2,2949.7,3.39006034]
[1769657717823,15.63901634,2951.2,2949.7,0.84752678]
[1769657718120,13.83225785,2951.0,2949.7,0.84752678]
[1769657718487,13.83225785,2951.0,2949.7,14.59653442]
[1769657718797,1.46793996,2950.9,2949.7,14.59653442]
[1769657719012,15.30019781,2950.9,2949.7,14.59653442]
[1769657719212,15.30019781,2950.9,2949.7,0.84752678]
[1769657719712,15.30019781,2950.9,2948.8,13.74900764]
[1769657719928,15.30019781,2950.9,2948.7,3.39127864]
[1769657719929,15.30019781,2950.9,2949.6,0.84756588]
[1769657720226,13.83225785,2950.7,2949.6,0.84756588]
[1769657720432,0.84728529,2950.6,2949.4,14.59663766]
[1769657720582,14.67954314,2950.6,2949.3,1.55764252]
[1769657720929,14.67954314,2950.6,2949.3,1.55765732]
[1769657723542,14.67954314,2950.6,2949.3,15.30666496]
[1769657723694,1.80685712,2950.5,2949.3,15.30666496]
[1769657725323,0.84730302,2950.6,2949.3,15.30666496]
[1769657725637,3.38903914,2950.7,2949.3,15.30666496]
[1769657725638,0.8472691,2950.7,2949.3,15.30666496]
[1769657727330,3.38892647,2950.8,2949.3,15.30666496]
[1769657727553,13.53251317,2950.7,2949.3,15.30666496]
[1769657728536,13.53251317,2950.7,2949.5,0.002]
[1769657728755,1.69214396,2950.6,2949.5,1.5328665]
[1769657729310,2.53944583,2950.6,2949.6,0.84757255]
[1769657731566,16.09232048,2950.6,2949.5,0.002]
[1769657732628,16.09232048,2950.6,2949.5,0.84959949]
[1769657733454,16.09232048,2950.6,2949.5,0.002]
[1769657733653,1.94823522,2950.5,2949.5,12.81654557]
[1769657733823,0.84730187,2950.6,2949.5,12.81654557]
[1769657736056,0.001,2950.7,2949.6,0.84757255]
[1769657736658,0.001,2950.7,2949.6,13.66211812]
[1769657736955,0.001,2950.7,2949.7,14.5199864]
[1769657737150,0.001,2950.7,2949.8,13.52454557]
[1769657737840,0.001,2950.7,2949.8,0.71]
[1769657738047,14.40015994,2950.6,2949.8,0.84751508]
[1769657738639,14.40015994,2950.6,2949.7,0.84752323]
[1769657738838,15.33189459,2950.5,2949.7,0.84752323]
[1769657739758,0.001,2950.7,2949.7,0.84752323]
[1769657739965,0.84825707,2950.7,2949.7,13.6620688]
[1769657740335,0.84825707,2950.7,2949.7,13.6640688]
[1769657740866,0.001,2950.4,2949.7,13.6640688]
[1769657741036,0.001,2950.4,2949.8,1.70543289]
[1769657742043,0.001,2950.4,2949.7,0.84952323]
[1769657742450,0.001,2950.4,2949.7,0.002]
[1769657743670,0.001,2950.4,2949.7,12.81654557]
[1769657744867,0.001,2950.4,2949.8,0.84751508]
[1769657745167,0.001,2950.4,2949.9,0.71]
[1769657747163,0.001,2950.4,2949.9,1.55748036]
[1769657748256,13.55387465,2950.4,2949.7,0.002]
[1769657748460,14.90826212,2950.3,2949.7,0.002]
[1769657749059,1.35538747,2950.3,2949.7,0.002]
[1769657749245,0.001,2950.4,2949.7,0.002]
[1769657750541,0.84834759,2950.4,2949.7,0.002]
[1769657750861,0.001,2950.4,2949.7,0.002]
[1769657754263,13.55387465,2950.4,2949.7,0.002]
[1769657757788,0.001,2950.4,2949.7,0.002]
[1769657759057,0.001,2950.4,2949.7,1.35838516]
[1769657760486,12.74085319,2950.4,2949.7,2.20590943]
[1769657760681,12.74085319,2950.4,2949.7,0.84952427]
[1769657761991,0.001,2950.4,2949.7,0.84952427]
[1769657762566,0.001,2950.4,2949.7,0.002]
[1769657764293,0.001,2950.4,2949.7,12.71425036]
[1769657764495,0.001,2950.4,2949.9,0.002]
[1769657764694,0.001,2950.4,2950.0,0.84745762]
[1769657765693,0.001,2950.7,2950.1,21.64618918]
[1769657765893,12.73985319,2951.3,2950.4,8.22393882]
[1769657766093,13.58694929,2951.3,2950.2,12.71225036]
[1769657766297,13.58693933,2951.3,2950.3,0.85341787]
[1769657766599,13.58694031,2951.3,2950.3,0.85341787]
[1769657766787,13.58694031,2951.3,2950.4,0.84734273]
[1769657766987,15.28446435,2951.3,2950.4,0.84734273]
[1769657767287,12.73985319,2951.3,2950.4,0.84734273]
[1769657767486,13.58685579,2951.6,2950.4,21.78353191]
[1769657767816,13.5868526,2951.6,2950.4,13.55959309]
[1769657767997,12.73985319,2951.6,2950.4,13.55959309]
[1769657768198,13.58678985,2951.9,2950.4,13.55959309]
[1769657768511,15.65055789,2951.9,2950.6,12.71225036]
[1769657768694,15.65053989,2951.9,2950.7,13.55950694]
[1769657768873,12.73985319,2951.9,2950.7,13.55950694]
[1769657769073,13.58669391,2952.2,2950.7,13.55950694]
[1769657769309,13.58669391,2952.2,2950.7,0.84725658]
[1769657770385,13.58669391,2952.2,2950.7,13.55950694]
[1769657772206,12.73985319,2952.2,2950.7,13.55950694]
[1769657772405,13.58668098,2952.2,2950.9,12.71225036]
[1769657772609,0.84682779,2952.2,2951.1,12.71225036]
[1769657772812,13.58753588,2952.7,2951.2,0.84711303]
[1769657773111,13.58753588,2952.7,2951.2,1.55711303]
[1769657775302,13.58753588,2952.7,2951.2,14.26936339]
[1769657775507,12.73985319,2952.5,2951.3,1.27162504]
[1769657777313,2.54424677,2952.6,2951.4,13.55930599]
[1769657777644,13.5865808,2952.6,2951.4,0.84705563]
[1769657777816,12.74085319,2952.3,2951.4,0.84705563]
[1769657778214,12.74085319,2952.3,2951.5,0.709]
[1769657778715,12.74085319,2952.3,2951.3,0.84706308]
[1769657778716,12.74085319,2952.3,2951.3,1.55606308]
[1769657779538,0.84682609,2952.2,2951.3,14.26831344]
[1769657779696,0.84781823,2952.3,2951.4,1.76567323]
[1769657782828,12.74085319,2952.3,2951.5,0.84702693]
[1769657783206,0.001,2952.3,2951.5,0.84702693]
[1769657783416,12.74085319,2952.3,2951.5,0.84702693]
[1769657783616,12.74085319,2952.3,2951.4,0.84705036]
[1769657785943,14.51458901,2952.2,2951.4,0.84705036]
[1769657786528,0.84780082,2952.3,2951.4,0.84705036]
[1769657786836,14.51556468,2952.3,2951.4,0.84705036]
[1769657787044,14.51556468,2952.3,2951.4,1.97958721]
[1769657788435,13.66876292,2952.3,2951.4,1.97958721]
[1769657788726,13.66876292,2952.3,2951.4,15.29865812]
[1769657790361,0.001,2952.3,2951.4,15.29865812]
[1769657790719,0.001,2952.3,2951.6,13.61107843]
[1769657790917,0.001,2952.1,2951.7,1.70150606]
[1769657792851,0.001,2952.1,2951.8,0.84694084]
[1769657794137,0.001,2952.7,2951.9,13.61107843]
[1769657794338,0.001,2952.7,2952.0,14.74361528]
[1769657794653,0.001,2952.7,2952.2,13.61107843]
[1769657794817,0.001,2952.7,2952.3,0.84679741]
[1769657795141,13.98494632,2953.4,2952.3,14.45787584]
[1769657795331,13.98494632,2953.4,2952.4,15.31258449]
[1769657795642,14.83138403,2953.6,2952.4,15.31258449]
[1769657796142,14.83138403,2953.6,2952.5,13.61107843]
[1769657796341,14.83138403,2953.6,2952.6,14.32007843]
[1769657796342,13.98494632,2953.6,2952.6,14.32007843]
[1769657796544,14.83137304,2953.6,2952.7,0.42353685]
[1769657796911,14.83137304,2953.6,2952.6,0.709]
[1769657797111,14.83137304,2953.6,2952.7,0.84668269]
[1769657797314,13.98494632,2953.8,2952.7,14.45776112]
[1769657798323,13.98494632,2953.8,2952.8,0.709]
[1769657798652,13.98494632,2953.8,2952.6,0.84669895]
[1769657798878,13.98494632,2953.5,2952.7,0.709]
[1769657799235,14.83142525,2953.5,2952.7,1.55566301]
[1769657799964,13.98494632,2953.5,2952.7,1.55566301]